[Event "ESCC-50 2022"]
[Site "Lublin"]
[Date "2022.07.06"]
[Round "2.7"]
[White "Puroila, Sippo"]
[Black "Lilja, Richard"]
[Result "1/2-1/2"]
[ECO "A84"]
[WhiteElo "1803"]
[BlackElo "2131"]
[Annotator "TA"]
[PlyCount "98"]
[EventDate "2022.07.05"]
[EventType "swiss"]
[EventCountry "POL"]
[SourceTitle "playchess.com"]
[Source "ChessBase"]
[SourceQuality "1"]
[TimeControl "40/5400+30:1800+30"]

{[%evp 9,98,19,20,14,17,15,14,9,33,20,24,22,27,0,0,0,48,64,81,0,31,0,36,-25,-40,-85,-34,-85,-72,-69,-67,-91,25,39,169,37,68,55,57,58,56,0,0,-18,-12,-38,-39,-39,-23,-80,8,2,1,12,4,0,76,65,53,0,0,0,0,0,0,0,0,0,0,0,0,-72,-72,-96,0,0,0,0,0,0,29,0,0,0,0,0,0,0,0,0,0]} 1. c4 {[%emt 0:00:14]} f5 {[%emt 0:00:09]} 2. d4 {[%emt 0:01:26]} Nf6 {[%emt 0:00:54]} 3. Nf3 {[%emt 0:00:48]} e6 {[%emt 0:00:13]} 4. e3 {[%emt 0:01:09]} b6 {[%emt 0:01:23]} 5. Be2 {[%emt 0:01:10]} Bb7 {[%emt 0:00:21]} 6. O-O {[%emt 0:00:57] A84: Dutch Defence: 2 c4 Miscellaneous.} Be7 {[%emt 0:00:52]} 7. Nc3 {[%emt 0:01:50]} O-O {[%emt 0:00:06]} 8. a3 {[%emt 0:03:01]} a5 {[%emt 0:17:46]} 9. b3 {[%emt 0:03:01]} (9. Ng5 {is more complex.} Na6 10. b3 c5 11. Bf3) 9... Qe8 {[%emt 0:02:57]} 10. Bb2 {[%emt 0:07:15]} Ne4 {[%emt 0:01:10] [#]} 11. Nxe4 $146 {[%emt 0:05:54]} ({Predecessor:} 11. Ra2 Nxc3 12. Bxc3 d5 13. cxd5 Bxd5 14. Bc4 Bd6 15. Bxd5 exd5 16. a4 Nd7 17. Re1 {½-½ (41) Sandocal,U (1712)-Plutarco,F (1677) LSS email 2017}) 11... fxe4 {[%emt 0:00:05]} 12. Nd2 {[%emt 0:00:36]} Bg5 {[%emt 0:01:13]} (12... Qg6 $11) 13. Qc2 $14 {[%emt 0:00:19]} Qg6 {[%emt 0:01:51]} 14. Qc3 {[%emt 0:03:24]} (14. d5 $16) 14... Qh6 {[%emt 0:04:17]} 15. Rae1 {[%emt 0:05:09]} Na6 {[%emt 0:11:04]} 16. Bd1 {[%emt 0:02:05]} (16. b4 $14) 16... c5 $11 {[%emt 0:00:43]} 17. Bc1 {[%emt 0:05:02][%cal Od4d5]} Bh4 {[%emt 0:15:14]} (17... cxd4 $17 18. exd4 b5) 18. Re2 {[%emt 0:06:56]} (18. Bb2 $15) 18... Qg6 $17 {[%emt 0:03:40]} 19. Bc2 {[%emt 0:03:34][%cal Of2f3]} Qg4 {[%emt 0:06:31] Against f3} 20. Bd1 {[%emt 0:01:52]} cxd4 {[%emt 0:06:23]} (20... Rf6 $17 {Threatens to win with ...Rg6.} 21. h3 Qg6) 21. exd4 $11 {[%emt 0:01:38]} Rf3 {[%emt 0:02:02] [#]} 22. Re3 {[%emt 0:02:32]} (22. Qc2 $1 $18 {[%cal Re2e4] And now Rxe4 would win.} Rff8 23. Nxe4) 22... Bxf2+ {[%emt 0:05:10]} 23. Rxf2 {[%emt 0:00:25][%mdl 64] Pin} Rxe3 {[%emt 0:00:08]} 24. Qxe3 {[%emt 0:02:29]} Qxd1+ {[%emt 0:00:04]} 25. Rf1 {[%emt 0:01:39]} (25. Nf1 $1 $14) 25... Qg4 {[%emt 0:01:37]} 26. h3 {[%emt 0:00:13]} Qg6 {[%emt 0:00:26]} 27. Rf4 {[%emt 0:00:17]} d5 {[%emt 0:04:05]} 28. Bb2 {[%emt 0:03:45][%cal Od2e4]} Rf8 {[%emt 0:01:48]} 29. c5 {[%emt 0:03:14]} (29. Rxf8+ $11 {keeps the balance.} Kxf8 30. Qf2+ Kg8 31. Nf1) 29... b5 {[%emt 0:01:55]} ({Better is} 29... Qe8 $17) 30. Rxf8+ {[%emt 0:00:31]} Kxf8 {[%emt 0:00:06]} 31. Qf4+ {[%emt 0:05:44]} Ke8 {[%emt 0:06:20]} 32. Qd6 {[%emt 0:02:50]} Bc8 {[%emt 0:00:40]} (32... e3 $2 33. Nf3 $18) (32... b4 $11) 33. Qc6+ $16 {[%emt 0:03:52]} Kd8 {[%emt 0:00:52]} 34. Qxb5 {[%emt 0:00:42]} ({Much weaker is} 34. Qb6+ Ke7 $11) (34. Nf1 $14) 34... e3 $36 {[%emt 0:00:48][%mdl 2048] Black has some pressure.} 35. Qxa5+ {[%emt 0:01:09]} Nc7 {[%emt 0:00:11]} 36. Nf3 $1 {[%emt 0:00:23]} ({Wrong is} 36. Nf1 $2 Qb1 37. Bc3 e2 $19) 36... Qb1+ {[%emt 0:00:14]} 37. Qe1 {[%emt 0:00:40]} Qxb2 {[%emt 0:00:05]} 38. Qxe3 {[%emt 0:00:15]} Qb1+ {[%emt 0:01:59]} 39. Kh2 {[%emt 0:00:13]} Qf5 {[%emt 0:00:38]} 40. b4 {[%emt 0:00:00] [#]} (40. Ne5 $11 {remains equal.}) 40... Bd7 $1 $17 {[%emt 0:00:00]} 41. Ne5 {[%emt 0:03:41]} Be8 {[%emt 0:07:26]} (41... Ba4 $17 42. Qg3 Qf6) 42. c6 $1 $11 {[%emt 0:01:14]} Nb5 {[%emt 0:16:24]} 43. a4 {[%emt 0:00:44]} Nd6 {[%emt 0:00:07]} 44. b5 {[%emt 0:01:18]} Kc7 {[%emt 0:02:58]} 45. Qc3 {[%emt 0:01:36][%mdl 1024] White has compensation.} Qf4+ {[%emt 0:02:29] The position is equal.} 46. Kg1 {[%emt 0:00:20] Hoping for Qc5.} Qf2+ $1 {[%emt 0:02:58]} 47. Kh2 {[%emt 0:02:43] Strongly threatening Qa5+. The board is on fire.} Qf4+ {[%emt 0:00:04]} 48. Kg1 {[%emt 0:02:32] aiming for Qa5+.} Qf2+ $1 {[%emt 0:00:27]} 49. Kh2 {[%emt 0:00:12] Qa5+ is the strong threat.} Qf4+ {[%emt 0:00:50] Weighted Error Value: White=0.23 (precise) /Black=0.24 (precise)} 1/2-1/2

[Event "ESCC-50 2022"]
[Site "Lublin"]
[Date "2022.07.06"]
[Round "2.8"]
[White "Garabetyan, Arno"]
[Black "Zielinski, Olgierd"]
[Result "1-0"]
[ECO "A44"]
[WhiteElo "2056"]
[BlackElo "1816"]
[Annotator "TA"]
[PlyCount "65"]
[EventDate "2022.07.05"]
[EventType "swiss"]
[EventCountry "POL"]
[SourceTitle "playchess.com"]
[Source "ChessBase"]
[SourceQuality "1"]
[TimeControl "40/5400+30:1800+30"]

{[%evp 9,65,66,92,79,70,70,87,95,120,115,128,124,129,111,134,114,115,107,134,137,128,129,196,193,270,189,181,170,181,173,244,169,253,179,221,197,278,233,276,208,267,203,206,210,309,253,253,253,293,225,253,115,114,59,58,0,87,37]} 1. d4 {[%emt 0:00:04]} c5 {[%emt 0:00:08]} 2. d5 {[%emt 0:00:15]} e5 {[%emt 0:00:10]} 3. e4 {[%emt 0:00:09]} d6 {[%emt 0:00:08]} 4. Bb5+ {[%emt 0:00:12]} Nd7 {[%emt 0:00:11]} 5. a4 {[%emt 0:00:08]} Be7 {[%emt 0:00:36]} 6. Ne2 {[%emt 0:01:09] A44: Semi-Benoni.} Bg5 {[%emt 0:02:39]} 7. Nd2 {[%emt 0:00:10] [#]} Bxd2+ $146 {[%emt 0:11:23]} ({Predecessor:} 7... a6 8. Bd3 Bxd2+ 9. Bxd2 Ne7 10. Ng3 h6 11. Nh5 g6 12. Ng3 h5 13. Qf3 h4 {½-½ (49) Bratic,I-Komic,I (2291) Neum 2002}) 8. Bxd2 {[%emt 0:00:37]} ({Much weaker is} 8. Kxd2 $6 Ne7 $11) 8... Ngf6 {[%emt 0:00:23]} 9. f3 {[%emt 0:04:44] White is more active.} a6 {[%emt 0:08:46]} 10. Bd3 {[%emt 0:01:04]} b6 {[%emt 0:00:07]} 11. g4 {[%emt 0:01:21][%cal Bg2g4,Bg4g5][%mdl 32]} Qc7 {[%emt 0:00:20] [#] Strongly threatening ...c4.} 12. c4 {[%emt 0:00:18]} a5 {[%emt 0:27:45]} 13. Ng3 {[%emt 0:00:47]} Nf8 {[%emt 0:02:53]} 14. g5 {[%emt 0:13:38]} Ng8 {[%emt 0:00:16]} 15. h4 {[%emt 0:02:19][%cal Bh2h4,Bh4h5][%mdl 32]} g6 {[%emt 0:20:06] Against Nh5} (15... h6 $16 {was called for.} 16. Kf2 h5) 16. h5 {[%emt 0:04:44]} Qe7 {[%emt 0:01:18]} (16... Ne7 $142 17. Kf2 Bb7) 17. Be3 {[%emt 0:05:05]} Kd8 {[%emt 0:03:29]} 18. Qd2 {[%emt 0:02:48]} Kc7 {[%emt 0:02:30]} 19. O-O-O {[%emt 0:00:35]} Bd7 {[%emt 0:11:25]} (19... gxh5 $142 20. Nxh5 (20. Rxh5 f6 $16) 20... Ng6) 20. b3 {[%emt 0:00:53]} Be8 {[%emt 0:00:27]} (20... f6 $142 21. h6 Bc8) 21. Rh2 {[%emt 0:05:06]} Rd8 {[%emt 0:00:13]} 22. Rdh1 {[%emt 0:00:09]} Kb7 {[%emt 0:01:20]} (22... gxh5 $142 23. Nf5 Qd7 24. Rxh5 f6) 23. Bf1 {[%emt 0:06:58]} Kc7 {[%emt 0:00:33]} 24. Bh3 {[%emt 0:00:15]} Bd7 {[%emt 0:00:09]} 25. Kb1 {[%emt 0:05:08]} Bxh3 {[%emt 0:00:33]} 26. Rxh3 {[%emt 0:00:03]} Re8 {[%emt 0:00:55]} (26... gxh5 $142 27. Rxh5 (27. Nf5 Qd7 $18) 27... Qd7) 27. Qh2 {[%emt 0:01:54]} Kb8 {[%emt 0:01:32]} 28. Bc1 {[%emt 0:00:59]} Kc8 {[%emt 0:01:41]} 29. Nf1 {[%emt 0:00:36]} Kb8 {[%emt 0:01:58]} 30. Ne3 {[%emt 0:02:02]} (30. hxg6 $18 {aiming for g7.} fxg6 31. Ng3) 30... Qxg5 $16 {[%emt 0:00:45]} 31. Rg1 {[%emt 0:01:48]} (31. Ng4 $16 Qe7 32. hxg6 Nxg6 33. Rxh7 Rxh7 34. Qxh7) 31... Qe7 $14 {[%emt 0:00:02]} 32. Ng4 {[%emt 0:04:23]} ({White should try} 32. hxg6 $14 fxg6 33. Nd1) 32... Nf6 {[%emt 0:00:20] [#]} (32... g5 $1 $11) 33. Nxf6 {[%emt 0:00:58] Weighted Error Value: White=0.33/Black=0.31} (33. Bg5 $1 $16 {[%cal Rg5f6]} Nxg4 34. Bxe7 Nxh2 35. Bxd6+ Kc8 36. Rxh2) 1-0

[Event "ESCC-50 2022"]
[Site "Lublin"]
[Date "2022.07.06"]
[Round "2.9"]
[White "Warnk, Torsten"]
[Black "Baliuniene, Margarita"]
[Result "1-0"]
[ECO "D02"]
[WhiteElo "1763"]
[BlackElo "1935"]
[Annotator "TA"]
[PlyCount "79"]
[EventDate "2022.07.05"]
[EventType "swiss"]
[EventCountry "POL"]
[SourceTitle "playchess.com"]
[Source "ChessBase"]
[SourceQuality "1"]
[TimeControl "40/5400+30:1800+30"]

{[%evp 13,79,6,36,40,50,26,78,68,72,20,43,41,41,48,44,16,53,53,73,60,61,51,87,98,150,139,145,62,95,94,316,302,304,285,525,505,500,476,610,604,619,631,607,591,601,611,1076,1047,1066,1020,981,877,822,808,1129,769,5618,1026,29989,29990,29990,29988,29988,29989,29989,29990,29998,29999]} 1. d4 {[%emt 0:00:02]} d5 {[%emt 0:00:06]} 2. Nf3 {[%emt 0:00:17]} e6 {[%emt 0:00:14]} 3. Bf4 {[%emt 0:00:23]} c5 {[%emt 0:00:16]} 4. e3 {[%emt 0:00:17]} Nf6 {[%emt 0:00:19]} 5. c4 {[%emt 0:00:37]} Nc6 {[%emt 0:01:54]} 6. Nc3 {[%emt 0:00:51]} a6 {[%emt 0:02:12]} 7. cxd5 {[%emt 0:05:35]} exd5 {[%emt 0:03:28]} 8. Be2 {[%emt 0:01:11] D32: Tarrasch Defence: Sidelines and lines without g3.} c4 {[%emt 0:01:11] is now debated instead of 8...Be7.} 9. O-O {[%emt 0:00:53]} Be7 {[%emt 0:01:29]} (9... b5 $11 {keeps the balance.}) 10. Ne5 $16 {[%emt 0:03:31] White is better.} O-O {[%emt 0:00:24] [#]} 11. Re1 $146 {[%emt 0:02:59]} (11. Nxc6 $16 bxc6 12. b3) ({Predecessor:} 11. e4 Nxe5 12. dxe5 Nxe4 13. Nxd5 Be6 14. Bxc4 Rc8 15. Nxe7+ Qxe7 16. Bd3 Nc5 17. Bc2 Bc4 18. Re1 Ne6 19. Be3 Rfd8 20. Qg4 Bd5 21. Rec1 g6 22. b3 Qa3 {½-½ (22) Popov,L-Kostov Petkov,P Sofia 1961}) 11... Be6 {[%emt 0:01:48]} 12. Nxc6 {[%emt 0:08:17]} bxc6 {[%emt 0:00:06]} 13. Qc2 {[%emt 0:01:51]} Qc8 {[%emt 0:06:18]} 14. Rac1 {[%emt 0:05:02]} c5 {[%emt 0:04:45]} 15. dxc5 {[%emt 0:04:17]} Bxc5 {[%emt 0:00:21]} 16. Bf3 {[%emt 0:00:40]} Rd8 {[%emt 0:01:24]} 17. Red1 {[%emt 0:04:00]} Ra7 {[%emt 0:09:04]} 18. Be5 {[%emt 0:04:23] And now Bxf6 would win.} Nd7 {[%emt 0:11:11]} (18... Rad7 $142) 19. Bg3 $1 {[%emt 0:03:56] White is more active.} Nb6 {[%emt 0:01:17] [#]} 20. Ne2 {[%emt 0:06:40]} (20. Nxd5 $1 $16 {[%mdl 512] Threatens to win with Nf4.} Rxd5 (20... Rad7 21. Nc3) 21. Rxd5) 20... Bf5 {[%emt 0:09:31]} 21. Qd2 {[%emt 0:04:23]} Bd3 $2 {[%emt 0:02:53] A mistake that costs the game.} (21... a5 $16) 22. Nf4 $18 {[%emt 0:01:10]} Bf5 {[%emt 0:08:21]} 23. Qa5 {[%emt 0:04:46]} ({Not} 23. Nxd5 Nxd5 24. e4 (24. Bxd5 Rad7 $11) 24... Bg4 25. exd5 Bxf3 26. gxf3 Bd6 $18) 23... Rad7 $2 {[%emt 0:04:58]} (23... Rb7 24. Nxd5 Nxd5) 24. b4 {[%emt 0:01:55]} Bxb4 {[%emt 0:11:20]} 25. Qxb4 {[%emt 0:01:38]} Rb7 {[%emt 0:00:26]} 26. Qa5 {[%emt 0:01:56]} Be4 {[%emt 0:03:12]} 27. Bxe4 {[%emt 0:07:54]} dxe4 {[%emt 0:00:01]} 28. Rxd8+ {[%emt 0:01:21]} Qxd8 {[%emt 0:00:05]} 29. Ne2 {[%emt 0:01:28]} Qd3 {[%emt 0:03:15]} 30. Nd4 {[%emt 0:00:41]} h6 {[%emt 0:01:24]} 31. h3 {[%emt 0:00:36]} Nd7 {[%emt 0:00:58]} 32. Qd5 {[%emt 0:03:51]} Rb1 {[%emt 0:01:39]} 33. Rxb1 {[%emt 0:00:10]} Qxb1+ {[%emt 0:00:01]} 34. Kh2 {[%emt 0:00:07]} Nb6 {[%emt 0:00:08]} 35. Qc6 {[%emt 0:02:11]} (35. Qd8+ $142 Kh7 36. Qf8) 35... Qb2 {[%emt 0:02:16]} 36. Qe8+ {[%emt 0:01:38] White mates.} Kh7 {[%emt 0:00:02]} 37. Qxe4+ {[%emt 0:00:10]} Kg8 {[%emt 0:00:23]} 38. Qe8+ {[%emt 0:02:42]} Kh7 {[%emt 0:00:02]} 39. Qxf7 {[%emt 0:00:12]} c3 {[%emt 0:00:15]} 40. Be5 {[%emt 0:00:00] Weighted Error Value: White=0.14 (very precise) /Black=0.54} 1-0

[Event "ESCC-50 2022"]
[Site "Lublin"]
[Date "2022.07.06"]
[Round "2.10"]
[White "Wielosz, Jaroslaw"]
[Black "Chwalewski, Marek"]
[Result "1/2-1/2"]
[ECO "A40"]
[WhiteElo "1891"]
[BlackElo "1774"]
[Annotator "NA RC COMBH"]
[PlyCount "63"]
[EventDate "2022.07.05"]
[EventType "swiss"]
[EventCountry "POL"]
[SourceTitle "playchess.com"]
[Source "ChessBase"]
[SourceQuality "1"]
[TimeControl "40/5400+30:1800+30"]

1. d4 {[%emt 0:00:06]} g6 {[%emt 0:00:24]} 2. c4 {[%emt 0:00:21]} d5 {[%emt 0:00:12]} 3. cxd5 {[%emt 0:00:29]} Nf6 {[%emt 0:00:17]} 4. Nf3 {[%emt 0:02:21]} Bg7 {[%emt 0:00:22]} 5. g3 {[%emt 0:00:15]} Nxd5 {[%emt 0:01:12]} 6. Bg2 {[%emt 0:00:08]} Nc6 {[%emt 0:07:31]} 7. O-O {[%emt 0:00:45]} Nb6 {[%emt 0:00:42]} 8. e3 {[%emt 0:04:41]} O-O {[%emt 0:03:17]} 9. Nc3 {[%emt 0:00:08]} Bg4 {[%emt 0:02:03]} 10. h3 {[%emt 0:02:27]} Bxf3 {[%emt 0:01:46]} 11. Bxf3 {[%emt 0:00:32]} Qd7 {[%emt 0:02:04]} 12. Bg2 {[%emt 0:02:06]} Rfd8 {[%emt 0:02:57]} 13. Bd2 {[%emt 0:08:57]} e5 {[%emt 0:04:11]} 14. d5 {[%emt 0:01:44]} Ne7 {[%emt 0:06:34]} 15. e4 {[%emt 0:01:48]} c6 {[%emt 0:01:30]} 16. Bg5 {[%emt 0:03:45]} h6 {[%emt 0:05:03]} 17. Bxe7 {[%emt 0:02:26]} Qxe7 {[%emt 0:00:17]} 18. Qb3 {[%emt 0:05:01]} cxd5 {[%emt 0:00:11]} 19. Nxd5 {[%emt 0:03:02]} Nxd5 {[%emt 0:00:14]} 20. exd5 {[%emt 0:00:09]} Kh7 {[%emt 0:00:11]} 21. Rac1 {[%emt 0:06:13]} f5 {[%emt 0:03:18]} 22. Rfd1 {[%emt 0:02:49]} Rd6 {[%emt 0:00:20]} 23. Qa3 {[%emt 0:09:10]} a6 {[%emt 0:00:50]} 24. Qa5 {[%emt 0:01:45]} Rad8 {[%emt 0:01:22]} 25. Rc7 {[%emt 0:01:18]} R8d7 {[%emt 0:00:18]} 26. Rxd7 {[%emt 0:01:00]} Rxd7 {[%emt 0:00:54]} 27. d6 {[%emt 0:08:49]} Qe8 {[%emt 0:08:44]} 28. Qb6 {[%emt 0:07:27]} e4 {[%emt 0:00:35]} 29. Rc1 {[%emt 0:03:13]} Be5 {[%emt 0:05:30]} 30. Rc7 {[%emt 0:01:03]} Qf7 {[%emt 0:06:38]} 31. Qxb7 {[%emt 0:02:11]} Rxc7 {[%emt 0:00:08]} 32. Qxc7 {[%emt 0:01:57]} 1/2-1/2

[Event "ESCC-50 2022"]
[Site "Lublin"]
[Date "2022.07.06"]
[Round "2.11"]
[White "Babijczuk, Wojciech"]
[Black "Krzyzanowski, Wojciech"]
[Result "1/2-1/2"]
[ECO "B34"]
[WhiteElo "1436"]
[BlackElo "1878"]
[Annotator "NA RC COMBH"]
[PlyCount "31"]
[EventDate "2022.07.05"]
[EventType "swiss"]
[EventCountry "POL"]
[SourceTitle "playchess.com"]
[Source "ChessBase"]
[SourceQuality "1"]
[TimeControl "40/5400+30:1800+30"]

1. e4 {[%emt 0:00:30]} c5 {[%emt 0:00:05]} 2. Nf3 {[%emt 0:00:00]} Nc6 {[%emt 0:00:04]} 3. d4 {[%emt 0:00:00]} cxd4 {[%emt 0:00:09]} 4. Nxd4 {[%emt 0:00:00]} Nf6 {[%emt 0:00:04]} 5. Nc3 {[%emt 0:00:00]} e5 {[%emt 0:00:06]} 6. Nxc6 {[%emt 0:02:04]} bxc6 {[%emt 0:00:09]} 7. Bg5 {[%emt 0:00:59]} Be7 {[%emt 0:00:35]} 8. Bxf6 {[%emt 0:00:53]} gxf6 9. Bc4 O-O 10. O-O f5 11. Bb3 f4 12. Qh5 d6 {[%emt 0:12:35]} 13. Rad1 {[%emt 0:15:39]} Qe8 {[%emt 0:06:40]} 14. Rd3 {[%emt 0:04:00]} Kh8 {[%emt 0:02:26]} 15. Rfd1 {[%emt 0:01:43]} Be6 {[%emt 0:05:07]} 16. Rxd6 {[%emt 0:01:41]} 1/2-1/2

[Event "ESCC-50 2022"]
[Site "Lublin"]
[Date "2022.07.07"]
[Round "3.1"]
[White "Lasinskas, Povilas"]
[Black "Mrva, Martin"]
[Result "1-0"]
[ECO "E61"]
[WhiteElo "2096"]
[BlackElo "2385"]
[Annotator "RC"]
[PlyCount "77"]
[EventDate "2022.07.05"]
[EventType "swiss"]
[EventCountry "POL"]
[SourceTitle "playchess.com"]
[Source "ChessBase"]
[SourceQuality "1"]
[TimeControl "40/5400+30:1800+30"]

1. d4 {[%emt 0:00:17]} Nf6 {[%emt 0:00:06]} 2. c4 {[%emt 0:00:23]} g6 {[%emt 0:00:08]} 3. Nc3 {[%emt 0:00:13]} Bg7 {[%emt 0:00:07]} 4. Nf3 {[%emt 0:00:07]} O-O {[%emt 0:00:07]} 5. Bg5 {[%emt 0:00:05]} c5 {[%emt 0:11:33]} 6. d5 {[%emt 0:02:53]} h6 7. Bd2 {[%emt 0:00:25]} e6 {[%emt 0:10:31]} 8. Qc1 {[%emt 0:01:56]} Kh7 {[%emt 0:02:54]} 9. h3 {[%emt 0:08:18]} d6 {[%emt 0:03:16]} 10. g4 {[%emt 0:01:25]} exd5 {[%emt 0:04:29]} 11. cxd5 {[%emt 0:00:25]} b5 {[%emt 0:05:26]} 12. g5 {[%emt 0:05:58]} hxg5 {[%emt 0:02:01]} 13. Nxg5+ {[%emt 0:02:37]} Kg8 {[%emt 0:00:06]} 14. Nxb5 {[%emt 0:02:03]} Na6 {[%emt 0:14:21]} 15. Bg2 {[%emt 0:05:22]} Nb4 {[%emt 0:00:37]} 16. O-O {[%emt 0:07:01]} Nbxd5 {[%emt 0:06:31]} 17. e4 {[%emt 0:01:08]} Rb8 {[%emt 0:00:18]} 18. Nxa7 {[%emt 0:01:28]} Ne7 {[%emt 0:01:28]} 19. Nxc8 {[%emt 0:00:18]} Qxc8 {[%emt 0:00:11]} 20. Bc3 {[%emt 0:00:19]} Nc6 {[%emt 0:03:20]} 21. Rd1 {[%emt 0:03:36]} Qc7 {[%emt 0:05:34]} 22. Qf4 {[%emt 0:01:25]} Nd4 {[%emt 0:00:18]} 23. Rd2 {[%emt 0:08:51]} Qe7 {[%emt 0:01:13]} 24. h4 {[%emt 0:18:05]} Nd7 {[%emt 0:06:02]} 25. Qg3 {[%emt 0:02:15]} Nb6 {[%emt 0:06:57]} 26. f4 {[%emt 0:06:18]} Na4 {[%emt 0:00:25]} 27. h5 {[%emt 0:02:46]} gxh5 {[%emt 0:01:08]} 28. Nf3 {[%emt 0:01:49]} Nxc3 {[%emt 0:08:00]} 29. bxc3 {[%emt 0:00:07]} Nxf3+ {[%emt 0:04:19]} 30. Bxf3 {[%emt 0:00:16]} h4 {[%emt 0:00:19]} 31. Qg4 {[%emt 0:00:39]} f5 {[%emt 0:00:56]} 32. exf5 {[%emt 0:01:21]} Qe3+ {[%emt 0:00:07]} 33. Rf2 {[%emt 0:00:18]} Rf6 {[%emt 0:00:10]} 34. Kg2 {[%emt 0:07:36]} Qxc3 {[%emt 0:00:09]} 35. Rg1 {[%emt 0:01:08]} Kf8 {[%emt 0:02:14]} 36. Kh1 {[%emt 0:00:53]} Rf7 {[%emt 0:01:01]} 37. Bd5 {[%emt 0:01:30]} Re7 {[%emt 0:00:03]} 38. Qh5 {[%emt 0:02:51]} Rb2 {[%emt 0:01:00]} 39. Qh8+ 1-0

[Event "ESCC-50 2022"]
[Site "Lublin"]
[Date "2022.07.07"]
[Round "3.2"]
[White "Druckenthaner, Andreas"]
[Black "Tereladze, Sopiko"]
[Result "1/2-1/2"]
[ECO "A05"]
[WhiteElo "2272"]
[BlackElo "2141"]
[Annotator "RC"]
[PlyCount "43"]
[EventDate "2022.07.05"]
[EventType "swiss"]
[EventCountry "POL"]
[SourceTitle "playchess.com"]
[Source "ChessBase"]
[SourceQuality "1"]
[TimeControl "40/5400+30:1800+30"]

1. Nf3 {[%emt 0:00:06]} Nf6 {[%emt 0:01:59]} 2. g3 {[%emt 0:00:08]} d5 {[%emt 0:00:23]} 3. Bg2 {[%emt 0:00:08]} Bf5 {[%emt 0:00:33]} 4. c4 {[%emt 0:00:58]} e6 {[%emt 0:00:53]} 5. O-O {[%emt 0:02:38]} c6 {[%emt 0:00:19]} 6. d3 {[%emt 0:02:04]} dxc4 {[%emt 0:01:15]} 7. dxc4 {[%emt 0:00:07]} Qxd1 {[%emt 0:00:49]} 8. Rxd1 {[%emt 0:00:10]} Na6 {[%emt 0:02:00]} 9. Nc3 {[%emt 0:00:33]} Be7 {[%emt 0:00:30]} 10. Nd4 {[%emt 0:01:41]} O-O-O {[%emt 0:00:39]} 11. Nxf5 {[%emt 0:02:35]} Rxd1+ {[%emt 0:00:41]} 12. Nxd1 {[%emt 0:00:13]} exf5 {[%emt 0:00:00]} 13. Nc3 {[%emt 0:01:26]} Nc5 {[%emt 0:02:46]} 14. Be3 {[%emt 0:05:48]} Rd8 {[%emt 0:01:10]} 15. h3 {[%emt 0:09:51]} Kc7 {[%emt 0:10:38]} 16. Rc1 {[%emt 0:07:37]} a5 {[%emt 0:02:56]} 17. b3 {[%emt 0:09:25]} h6 {[%emt 0:08:27]} 18. f4 {[%emt 0:09:46]} Nfe4 {[%emt 0:03:17]} 19. Nxe4 {[%emt 0:01:50]} Nxe4 {[%emt 0:00:45]} 20. g4 {[%emt 0:02:26]} Bc5 {[%emt 0:00:56]} 21. Bxc5 {[%emt 0:00:17]} Nxc5 {[%emt 0:00:01]} 22. Rc2 {[%emt 0:02:48]} 1/2-1/2

[Event "ESCC-50 2022"]
[Site "Lublin"]
[Date "2022.07.07"]
[Round "3.3"]
[White "Krzyzanowska-Zadlo, Lidia"]
[Black "Klimaszewski, Dariusz"]
[Result "0-1"]
[ECO "B21"]
[WhiteElo "1732"]
[BlackElo "2152"]
[Annotator "RC"]
[PlyCount "64"]
[EventDate "2022.07.05"]
[EventType "swiss"]
[EventCountry "POL"]
[SourceTitle "playchess.com"]
[Source "ChessBase"]
[SourceQuality "1"]
[TimeControl "40/5400+30:1800+30"]

1. e4 {[%emt 0:00:04]} c5 {[%emt 0:00:09]} 2. d4 {[%emt 0:00:11]} cxd4 {[%emt 0:00:30]} 3. c3 {[%emt 0:00:06]} dxc3 {[%emt 0:02:01]} 4. Nxc3 {[%emt 0:01:28]} e6 {[%emt 0:02:25]} 5. Nf3 {[%emt 0:01:10]} Bc5 {[%emt 0:00:53]} 6. Bc4 {[%emt 0:03:49]} Ne7 {[%emt 0:00:43]} 7. O-O {[%emt 0:05:13]} a6 {[%emt 0:01:52]} 8. Bf4 {[%emt 0:04:44]} Ng6 {[%emt 0:01:27]} 9. Bg3 {[%emt 0:04:19]} b5 {[%emt 0:04:06]} 10. Bb3 {[%emt 0:00:52]} Bb7 {[%emt 0:00:46]} 11. Qe2 {[%emt 0:02:31]} O-O {[%emt 0:00:58]} 12. Rac1 {[%emt 0:01:13]} d6 {[%emt 0:02:04]} 13. Rfd1 {[%emt 0:00:31]} Qe7 {[%emt 0:00:34]} 14. h4 {[%emt 0:01:08]} Nc6 {[%emt 0:01:51]} 15. e5 {[%emt 0:29:41]} Ngxe5 {[%emt 0:08:31]} 16. Nxe5 {[%emt 0:04:46]} Nxe5 {[%emt 0:01:33]} 17. Ne4 {[%emt 0:00:17]} Bxe4 {[%emt 0:04:54]} 18. Qxe4 {[%emt 0:00:10]} f5 {[%emt 0:00:40]} 19. Qe2 {[%emt 0:01:00]} f4 {[%emt 0:01:25]} 20. Rxc5 {[%emt 0:00:24]} fxg3 {[%emt 0:00:37]} 21. Rxe5 {[%emt 0:00:44]} gxf2+ {[%emt 0:00:36]} 22. Kf1 {[%emt 0:00:53]} dxe5 {[%emt 0:00:43]} 23. Qxe5 {[%emt 0:05:49]} Qxh4 {[%emt 0:00:54]} 24. Qxe6+ {[%emt 0:06:31]} Kh8 {[%emt 0:00:13]} 25. Qh3 {[%emt 0:00:11]} Qxh3 {[%emt 0:00:28]} 26. gxh3 {[%emt 0:00:07]} Rae8 {[%emt 0:00:10]} 27. Bc2 {[%emt 0:00:46]} g6 {[%emt 0:00:13]} 28. Bd3 {[%emt 0:00:49]} Re3 {[%emt 0:00:22]} 29. Be2 {[%emt 0:00:31]} Rxh3 {[%emt 0:00:33]} 30. Kg2 {[%emt 0:00:20]} Re3 {[%emt 0:00:24]} 31. Bf1 {[%emt 0:00:28]} h5 {[%emt 0:00:09]} 32. Rd2 {[%emt 0:00:11]} h4 {[%emt 0:00:22]} 0-1